{"text_format":"1","workbook":"xlsx","n_sheets":6,"sheets":["申込シート","参加1","参加2","不参加","集計（一覧表）","集計（返し）"],"not_rendered":{"charts":0,"images":0,"macros":1,"external_links":0,"defined_names":6,"comments":0,"pivot_tables":0},"unopened":[],"bounds":{"document_bytes":16777216,"sheet_cells":100000,"rows_first":2000,"rows_last":500,"rows_between":2000,"halvings":0,"cell_chars":16384,"cell_head_chars":4096},"cells_cut":0,"cells_raw":0,"read":"whole","date_system":"1900"}

{"sheet":"申込シート","index":0,"n_rows":168,"n_cols":42,"rows_kept":168,"cut":false,"hidden":false,"merged":[[29,5,29,7],[30,1,30,4],[31,1,31,4],[32,1,32,4],[30,5,30,7],[31,5,31,7],[32,5,32,7],[29,1,29,4],[22,9,22,13],[23,9,23,13],[21,15,21,16],[22,15,22,16],[23,15,23,16],[30,12,30,16],[36,1,36,19],[34,1,34,18],[25,9,25,13],[1,0,1,20],[3,12,3,14],[7,13,7,18],[24,2,24,4],[25,2,25,4],[9,13,9,18],[11,13,11,18],[14,3,16,7],[25,7,25,8],[22,7,22,8],[23,7,23,8],[24,7,24,8],[37,1,37,18],[35,1,35,19],[31,15,31,16],[32,15,32,16],[33,15,33,16],[31,13,31,14],[32,13,32,14],[33,13,33,14],[26,9,26,13],[26,15,26,16],[26,7,26,8],[25,15,25,16],[20,2,20,4],[20,7,20,8],[21,2,21,4],[21,7,21,8],[22,2,22,4],[26,2,26,4],[24,9,24,13],[24,15,24,16],[23,2,23,4],[20,14,20,17],[20,9,20,13],[21,9,21,13]]}
[null,null,null,null,null,null,null,null,null,null,null,null,null,null,null,null,null,null,null,null,null,null,null,null,null,null,null,null,null,null,null,null,null,null,null,null,null,null,null,null,null,{"$f":"申込シート!N8&\"OC1申込シート\"&D15","v":"OC1申込シート"}]
["   令和６年度　東山総合支援学校\n　　　学校見学会（中１・小６対象オープンキャンパス）参加申込シート（小６用）\n                             　（京都市以外の学校専用）",null,null,null,null,null,null,null,null,null,null,null,null,null,null,null,null,null,null,null,null,null,null,null,null,"リスト","8","1",null,"１０月１７日（木）",null,"３年","男","特別支援","１回目","北","北区","元町小学校","491-7690",null,"第１部"]
[null,"（あて先）京都市立東山総合支援学校　校長",null,null,null,null,null,null,null,null,null,null,null,null,null,null,null,null,null,null,null,null,null,null,null,null,"9","2",null,"１０月２４日（木）",null,null,"女","普通","２回目","上京",null,"上賀茂小学校","711-0804",null,"第２部"]
[null,null,null,null,null,null,null,null,null,null,null,null,"令和 ６",null,null,"年",null,"月",null,"日",null,null,null,null,null,null,"10","3",null,"１０月２９日（火）",null,null,null,null,"３回目","左京",null,"柊野小学校","791-4700",null,"どちらでも良い"]
[null,null,null,null,null,null,null,null,null,null,null,null,null,null,null,null,null,null,null,null,null,null,null,null,null,null,"11","4",null,null,null,null,null,null,null,"中京",null,"大宮小学校","491-0783"]
[null,null,null,null,null,null,null,null,null,null,null,null,null,null,null,null,null,null,null,null,null,null,null,null,null,null,null,"5",null,null,null,null,null,null,null,"東山",null,"待鳳小学校","491-4343"]
[null,null,null,null,null,null,null,null,null,null,null,null,null,null,null,null,null,null,null,null,null,null,null,null,null,null,null,"6",null,null,null,null,null,null,null,"山科",null,"鳳徳小学校","491-3592"]
[null,null,null,null,null,null,null,null,null,null,null,"学校名",null,null,null,null,null,null,null,null,null,null,null,null,null,null,null,"7",null,null,null,null,null,null,null,"下京",null,"紫竹小学校","491-6005"]
[null,null,null,null,null,null,null,null,null,null,null,null,null,null,null,null,null,null,null,null,null,null,null,null,null,null,null,"8",null,null,null,null,null,null,null,"南",null,"鷹峯小学校","491-3607"]
[null,null,null,null,null,null,null,null,null,null,null,"電話番号",null,null,null,null,null,null,null,null,null,null,null,null,null,null,null,"9",null,null,null,null,null,null,null,"右京",null,"紫明小学校","451-2156"]
[null,null,null,null,null,null,null,null,null,null,null,null,null,null,null,null,null,null,null,null,null,null,null,null,null,null,null,"10",null,"　　　　　　　　　　　　　",null,null,null,null,null,"西京",null,"紫野小学校","441-4606"]
[null,null,null,null,null,null,null,null,null,null,null,"記入者　",null,null,null,null,null,null,null,null,null,null,null,null,null,null,null,"11",null,null,null,null,null,null,null,"伏見",null,"柏野小学校","461-8330"]
[null,null,null,null,null,null,null,null,null,null,null,null,null,null,null,null,null,null,null,null,null,null,null,null,null,null,null,"12",null,null,null,null,null,null,null,null,null,"衣笠小学校","462-0034"]
[null,"１　希望日",null,null,null,null,null,null,null,null,null,null,null,null,null,null,null,null,null,null,null,null,null,null,null,null,null,"13",null,null,null,null,null,null,null,null,null,"金閣小学校","462-1700"]
[null,null,null,null,null,null,null,null,null,null,null,null,null,null,null,null,null,null,null,null,null,null,null,null,null,null,null,"14",null,null,null,null,null,null,null,null,null,"大将軍小学校","461-4310"]
[null,null,null,null,null,null,null,null,null,null,null,null,null,null,null,null,null,null,null,null,null,null,null,null,null,null,null,"15",null,null,null,null,null,null,null,null,"上京区","室町小学校","431-0358"]
[null,null,null,null,null,null,null,null,null,null,null,null,null,null,null,null,null,null,null,null,null,null,null,null,null,null,null,"16",null,null,null,null,null,null,null,null,null,"京極小学校","231-0959"]
[null,null,null,null,null,null,null,null,null,null,null,null,null,null,null,null,null,null,null,null,null,null,null,null,null,null,null,"17",null,null,null,null,null,null,null,null,null,"新町小学校","432-4190"]
[null,"２　参加希望者",null,null,null,null,null,null,null,null,null,null,null,null,null,null,null,null,null,null,null,null,null,null,null,null,null,"18",null,null,null,null,null,null,null,null,null,"西陣中央小学校","432-5522"]
[null,"①　小学６年生児童の保護者、家族",null,null,null,null,null,null,null,null,null,null,null,null,null,null,null,null,null,null,null,null,null,null,null,null,null,"19",null,null,null,null,null,null,null,null,null,"乾隆小学校","451-0085"]
[null,"学年","児童氏名",null,null,"性別","在籍学級","参加回数",null,"保護者名",null,null,null,null,"児童との関係",null,null,null,null,null,null,null,null,null,null,null,null,"20",null,null,null,null,null,null,null,null,null,"翔鸞小学校","462-0084"]
[null,"６年",null,null,null,null,null,null,null,null,null,null,null,null,"（",null,null,"）",null,null,null,null,null,null,null,null,null,"21",null,null,null,null,null,null,null,null,null,"仁和小学校","462-0092"]
[null,"６年",null,null,null,null,null,null,null,null,null,null,null,null,"（",null,null,"）",null,null,null,null,null,null,null,null,null,"22",null,null,null,null,null,null,null,null,null,"正親小学校","451-0091"]
[null,"６年",null,null,null,null,null,null,null,null,null,null,null,null,"（",null,null,"）",null,null,null,null,null,null,null,null,null,"23",null,null,null,null,null,null,null,null,null,"二条城北小学校","841-8684"]
[null,"６年",null,null,null,null,null,null,null,null,null,null,null,null,"（",null,null,"）",null,null,null,null,null,null,null,null,null,"24",null,null,null,null,null,null,null,null,null,"北総合支援学校","431-6636"]
[null,"６年",null,null,null,null,null,null,null,null,null,null,null,null,"（",null,null,"）",null,null,null,null,null,null,null,null,null,"25",null,null,null,null,null,null,null,null,"左京区","明徳小学校","701-0111"]
[null,"６年",null,null,null,null,null,null,null,null,null,null,null,null,"（",null,null,"）",null,null,null,null,null,null,null,null,null,"26",null,null,null,null,null,null,null,null,null,"岩倉南小学校","791-3207"]
[null,null,null,null,null,null,null,null,null,null,null,null,null,null,null,null,null,null,null,null,null,null,null,null,null,null,null,"27",null,null,null,null,null,null,null,null,null,"岩倉北小学校","721-5618"]
[null,"②　小学校、特別支援学校（小学部）の教職員",null,null,null,null,null,null,null,null,null,null,null,null,null,null,null,null,null,null,null,null,null,null,null,null,null,"28",null,null,null,null,null,null,null,null,null,"八瀬小学校","781-5092"]
[null,"教職員氏名",null,null,null,"児童との関係／校務分掌",null,null,null,null,null,null,null,null,null,null,null,null,null,null,null,null,null,null,null,null,null,"29",null,null,null,null,null,null,null,null,null,"市原野小学校","741-2450"]
[null,null,null,null,null,null,null,null,null,null,null,null,"参加希望人数",null,null,null,null,null,null,null,null,null,null,null,null,null,null,"30",null,null,null,null,null,null,null,null,null,"静原小学校","741-2075"]
[null,null,null,null,null,null,null,null,null,null,null,null,null,"保護者",null,{"$f":"COUNTA(J22:N27)","v":0},null,"名",null,null,null,null,null,null,null,null,null,"31",null,null,null,null,null,null,null,null,null,"鞍馬小学校","741-2006"]
[null,null,null,null,null,null,null,null,null,null,null,null,null,"教職員",null,{"$f":"COUNTA(B31:E33)","v":0},null,"名",null,null,null,null,null,null,null,null,null,null,null,null,null,null,null,null,null,null,null,"錦林小学校","771-0921"]
[null,null,null,null,null,null,null,null,null,null,null,null,null,"合　計",null,{"$f":"SUM(P32:Q33)","v":0},null,"名",null,null,null,null,null,null,null,null,null,null,null,null,null,null,null,null,null,null,null,"第三錦林小学校","771-4844"]
[null,"○欄が不足する場合はファイルをコピーして使用してください",null,null,null,null,null,null,null,null,null,null,null,null,null,null,null,null,null,null,null,null,null,null,null,null,null,null,null,null,null,null,null,null,null,null,null,"第四錦林小学校","771-0384"]
[null,"○貴校からの東山総合支援学校への申込締切日および時刻は、各実施日２週間前の同じ\n 曜日の午後５時です\n○参加申込シートは管理職の先生から 電子メールで 副教頭 前川 智子まで送信していた\n だきます様お願いいたします（セキュリティ強化により外部からExcelデータが受付できませ\n んので、お手数ですが必要事項を入力後、PDFに変換し、メールに添付していただきますよう\n お願いします）\n E-mail：higashiyama-y@edu.city.kyoto.jp\n （添付されるファイルの○○の所に貴校の学校名を含ませてください）",null,null,null,null,null,null,null,null,null,null,null,null,null,null,null,null,null,null,null,null,null,null,null,null,null,null,null,null,null,null,null,null,null,null,null,"北白川小学校","791-1158"]
[null,"○決定通知書を電子メールにて送付します（２０組の定員を設けています。申込は先着順とし、参加回数の少ない人を優先にさせていただきますので、ご希望に添えないこともあります）",null,null,null,null,null,null,null,null,null,null,null,null,null,null,null,null,null,null,null,null,null,null,null,null,null,null,null,null,null,null,null,null,null,null,null,"養正小学校","791-7184"]
[null,null,null,null,null,null,null,null,null,null,null,null,null,null,null,null,null,null,null,null,null,null,null,null,null,null,null,null,null,null,null,null,null,null,null,null,null,"養徳小学校","721-6623"]
[null,null,null,null,null,null,null,null,null,null,null,null,null,null,null,null,null,null,null,null,null,null,null,null,null,null,null,null,null,null,null,null,null,null,null,null,null,"下鴨小学校","781-0382"]
[null,null,null,null,null,null,null,null,null,null,null,null,null,null,null,null,null,null,null,null,null,null,null,null,null,null,null,null,null,null,null,null,null,null,null,null,null,"葵小学校","701-7151"]
[null,null,null,null,null,null,null,null,null,null,null,null,null,null,null,null,null,null,null,null,null,null,null,null,null,null,null,null,null,null,null,null,null,null,null,null,null,"修学院小学校","781-4439"]
[null,null,null,null,null,null,null,null,null,null,null,null,null,null,null,null,null,null,null,null,null,null,null,null,null,null,null,null,null,null,null,null,null,null,null,null,null,"上高野小学校","701-3995"]
[null,null,null,null,null,null,null,null,null,null,null,null,null,null,null,null,null,null,null,null,null,null,null,null,null,null,null,null,null,null,null,null,null,null,null,null,null,"修学院第二小学校","781-5400"]
[null,null,null,null,null,null,null,null,null,null,null,null,null,null,null,null,null,null,null,null,null,null,null,null,null,null,null,null,null,null,null,null,null,null,null,null,null,"松ヶ崎小学校","781-3380"]
[null,null,null,null,null,null,null,null,null,null,null,null,null,null,null,null,null,null,null,null,null,null,null,null,null,null,null,null,null,null,null,null,null,null,null,null,null,"大原小中学校","744-2004"]
[null,null,null,null,null,null,null,null,null,null,null,null,null,null,null,null,null,null,null,null,null,null,null,null,null,null,null,null,null,null,null,null,null,null,null,null,null,"花背小中学校","746-0131"]
[null,null,null,null,null,null,null,null,null,null,null,null,null,null,null,null,null,null,null,null,null,null,null,null,null,null,null,null,null,null,null,null,null,null,null,null,"中京区","御所東小学校","211-8477"]
[null,null,null,null,null,null,null,null,null,null,null,null,null,null,null,null,null,null,null,null,null,null,null,null,null,null,null,null,null,null,null,null,null,null,null,null,null,"御所南小学校","223-0148"]
[null,null,null,null,null,null,null,null,null,null,null,null,null,null,null,null,null,null,null,null,null,null,null,null,null,null,null,null,null,null,null,null,null,null,null,null,null,"高倉小学校","211-8784"]
[null,null,null,null,null,null,null,null,null,null,null,null,null,null,null,null,null,null,null,null,null,null,null,null,null,null,null,null,null,null,null,null,null,null,null,null,null,"洛中小学校","841-0260"]
[null,null,null,null,null,null,null,null,null,null,null,null,null,null,null,null,null,null,null,null,null,null,null,null,null,null,null,null,null,null,null,null,null,null,null,null,null,"朱雀第一小学校","841-3201"]
[null,null,null,null,null,null,null,null,null,null,null,null,null,null,null,null,null,null,null,null,null,null,null,null,null,null,null,null,null,null,null,null,null,null,null,null,null,"朱雀第二小学校","841-3202"]
[null,null,null,null,null,null,null,null,null,null,null,null,null,null,null,null,null,null,null,null,null,null,null,null,null,null,null,null,null,null,null,null,null,null,null,null,null,"朱雀第三小学校","312-3203"]
[null,null,null,null,null,null,null,null,null,null,null,null,null,null,null,null,null,null,null,null,null,null,null,null,null,null,null,null,null,null,null,null,null,null,null,null,null,"朱雀第四小学校","841-3204"]
[null,null,null,null,null,null,null,null,null,null,null,null,null,null,null,null,null,null,null,null,null,null,null,null,null,null,null,null,null,null,null,null,null,null,null,null,null,"朱雀第六小学校","841-3206"]
[null,null,null,null,null,null,null,null,null,null,null,null,null,null,null,null,null,null,null,null,null,null,null,null,null,null,null,null,null,null,null,null,null,null,null,null,null,"朱雀第七小学校","311-0307"]
[null,null,null,null,null,null,null,null,null,null,null,null,null,null,null,null,null,null,null,null,null,null,null,null,null,null,null,null,null,null,null,null,null,null,null,null,null,"朱雀第八小学校","841-0080"]
[null,null,null,null,null,null,null,null,null,null,null,null,null,null,null,null,null,null,null,null,null,null,null,null,null,null,null,null,null,null,null,null,null,null,null,null,"東山区","開睛小中学校","533-8811"]
[null,null,null,null,null,null,null,null,null,null,null,null,null,null,null,null,null,null,null,null,null,null,null,null,null,null,null,null,null,null,null,null,null,null,null,null,null,"東山泉小中学校","532-0377"]
[null,null,null,null,null,null,null,null,null,null,null,null,null,null,null,null,null,null,null,null,null,null,null,null,null,null,null,null,null,null,null,null,null,null,null,null,"山科区","山階小学校","581-2143"]
[null,null,null,null,null,null,null,null,null,null,null,null,null,null,null,null,null,null,null,null,null,null,null,null,null,null,null,null,null,null,null,null,null,null,null,null,null,"西野小学校","501-5700"]
[null,null,null,null,null,null,null,null,null,null,null,null,null,null,null,null,null,null,null,null,null,null,null,null,null,null,null,null,null,null,null,null,null,null,null,null,null,"山階南小学校","592-2849"]
[null,null,null,null,null,null,null,null,null,null,null,null,null,null,null,null,null,null,null,null,null,null,null,null,null,null,null,null,null,null,null,null,null,null,null,null,null,"安朱小学校","591-0001"]
[null,null,null,null,null,null,null,null,null,null,null,null,null,null,null,null,null,null,null,null,null,null,null,null,null,null,null,null,null,null,null,null,null,null,null,null,null,"鏡山小学校","581-2183"]
[null,null,null,null,null,null,null,null,null,null,null,null,null,null,null,null,null,null,null,null,null,null,null,null,null,null,null,null,null,null,null,null,null,null,null,null,null,"陵ヶ岡小学校","591-0002"]
[null,null,null,null,null,null,null,null,null,null,null,null,null,null,null,null,null,null,null,null,null,null,null,null,null,null,null,null,null,null,null,null,null,null,null,null,null,"音羽小学校","592-0001"]
[null,null,null,null,null,null,null,null,null,null,null,null,null,null,null,null,null,null,null,null,null,null,null,null,null,null,null,null,null,null,null,null,null,null,null,null,null,"音羽川小学校","501-4414"]
[null,null,null,null,null,null,null,null,null,null,null,null,null,null,null,null,null,null,null,null,null,null,null,null,null,null,null,null,null,null,null,null,null,null,null,null,null,"大塚小学校","592-6141"]
[null,null,null,null,null,null,null,null,null,null,null,null,null,null,null,null,null,null,null,null,null,null,null,null,null,null,null,null,null,null,null,null,null,null,null,null,null,"勧修小学校","591-0003"]
[null,null,null,null,null,null,null,null,null,null,null,null,null,null,null,null,null,null,null,null,null,null,null,null,null,null,null,null,null,null,null,null,null,null,null,null,null,"小野小学校","571-8282"]
[null,null,null,null,null,null,null,null,null,null,null,null,null,null,null,null,null,null,null,null,null,null,null,null,null,null,null,null,null,null,null,null,null,null,null,null,null,"百々小学校","593-3250"]
[null,null,null,null,null,null,null,null,null,null,null,null,null,null,null,null,null,null,null,null,null,null,null,null,null,null,null,null,null,null,null,null,null,null,null,null,null,"大宅小学校","591-0015"]
[null,null,null,null,null,null,null,null,null,null,null,null,null,null,null,null,null,null,null,null,null,null,null,null,null,null,null,null,null,null,null,null,null,null,null,null,null,"東総合支援学校","594-6501"]
[null,null,null,null,null,null,null,null,null,null,null,null,null,null,null,null,null,null,null,null,null,null,null,null,null,null,null,null,null,null,null,null,null,null,null,null,"下京区","洛央小学校","344-2093"]
[null,null,null,null,null,null,null,null,null,null,null,null,null,null,null,null,null,null,null,null,null,null,null,null,null,null,null,null,null,null,null,null,null,null,null,null,null,"下京渉成小学校","342-2522"]
[null,null,null,null,null,null,null,null,null,null,null,null,null,null,null,null,null,null,null,null,null,null,null,null,null,null,null,null,null,null,null,null,null,null,null,null,null,"下京雅小学校","353-0008"]
[null,null,null,null,null,null,null,null,null,null,null,null,null,null,null,null,null,null,null,null,null,null,null,null,null,null,null,null,null,null,null,null,null,null,null,null,null,"梅小路小学校","371-7303"]
[null,null,null,null,null,null,null,null,null,null,null,null,null,null,null,null,null,null,null,null,null,null,null,null,null,null,null,null,null,null,null,null,null,null,null,null,null,"光徳小学校","841-3992"]
[null,null,null,null,null,null,null,null,null,null,null,null,null,null,null,null,null,null,null,null,null,null,null,null,null,null,null,null,null,null,null,null,null,null,null,null,null,"七条小学校","313-0077"]
[null,null,null,null,null,null,null,null,null,null,null,null,null,null,null,null,null,null,null,null,null,null,null,null,null,null,null,null,null,null,null,null,null,null,null,null,null,"西大路小学校","313-0501"]
[null,null,null,null,null,null,null,null,null,null,null,null,null,null,null,null,null,null,null,null,null,null,null,null,null,null,null,null,null,null,null,null,null,null,null,null,null,"七条第三小学校","313-7380"]
[null,null,null,null,null,null,null,null,null,null,null,null,null,null,null,null,null,null,null,null,null,null,null,null,null,null,null,null,null,null,null,null,null,null,null,null,"南区","九条弘道小学校","671-6981"]
[null,null,null,null,null,null,null,null,null,null,null,null,null,null,null,null,null,null,null,null,null,null,null,null,null,null,null,null,null,null,null,null,null,null,null,null,null,"九条塔南小学校","691-1540"]
[null,null,null,null,null,null,null,null,null,null,null,null,null,null,null,null,null,null,null,null,null,null,null,null,null,null,null,null,null,null,null,null,null,null,null,null,null,"南大内小学校","691-8458"]
[null,null,null,null,null,null,null,null,null,null,null,null,null,null,null,null,null,null,null,null,null,null,null,null,null,null,null,null,null,null,null,null,null,null,null,null,null,"唐橋小学校","691-8001"]
[null,null,null,null,null,null,null,null,null,null,null,null,null,null,null,null,null,null,null,null,null,null,null,null,null,null,null,null,null,null,null,null,null,null,null,null,null,"吉祥院小学校","671-5395"]
[null,null,null,null,null,null,null,null,null,null,null,null,null,null,null,null,null,null,null,null,null,null,null,null,null,null,null,null,null,null,null,null,null,null,null,null,null,"祥栄小学校","681-1556"]
[null,null,null,null,null,null,null,null,null,null,null,null,null,null,null,null,null,null,null,null,null,null,null,null,null,null,null,null,null,null,null,null,null,null,null,null,null,"祥豊小学校","691-2486"]
[null,null,null,null,null,null,null,null,null,null,null,null,null,null,null,null,null,null,null,null,null,null,null,null,null,null,null,null,null,null,null,null,null,null,null,null,null,"上鳥羽小学校","691-0393"]
[null,null,null,null,null,null,null,null,null,null,null,null,null,null,null,null,null,null,null,null,null,null,null,null,null,null,null,null,null,null,null,null,null,null,null,null,null,"大藪小学校","921-3303"]
[null,null,null,null,null,null,null,null,null,null,null,null,null,null,null,null,null,null,null,null,null,null,null,null,null,null,null,null,null,null,null,null,null,null,null,null,null,"久世西小学校","934-0460"]
[null,null,null,null,null,null,null,null,null,null,null,null,null,null,null,null,null,null,null,null,null,null,null,null,null,null,null,null,null,null,null,null,null,null,null,null,null,"凌風小中学校","693-8222"]
[null,null,null,null,null,null,null,null,null,null,null,null,null,null,null,null,null,null,null,null,null,null,null,null,null,null,null,null,null,null,null,null,null,null,null,null,"右京区","嵯峨小学校","861-1543"]
[null,null,null,null,null,null,null,null,null,null,null,null,null,null,null,null,null,null,null,null,null,null,null,null,null,null,null,null,null,null,null,null,null,null,null,null,null,"広沢小学校","881-4978"]
[null,null,null,null,null,null,null,null,null,null,null,null,null,null,null,null,null,null,null,null,null,null,null,null,null,null,null,null,null,null,null,null,null,null,null,null,null,"嵐山小学校","872-1466"]
[null,null,null,null,null,null,null,null,null,null,null,null,null,null,null,null,null,null,null,null,null,null,null,null,null,null,null,null,null,null,null,null,null,null,null,null,null,"常磐野小学校","872-9735"]
[null,null,null,null,null,null,null,null,null,null,null,null,null,null,null,null,null,null,null,null,null,null,null,null,null,null,null,null,null,null,null,null,null,null,null,null,null,"嵯峨野小学校","861-4177"]
[null,null,null,null,null,null,null,null,null,null,null,null,null,null,null,null,null,null,null,null,null,null,null,null,null,null,null,null,null,null,null,null,null,null,null,null,null,"御室小学校","462-0008"]
[null,null,null,null,null,null,null,null,null,null,null,null,null,null,null,null,null,null,null,null,null,null,null,null,null,null,null,null,null,null,null,null,null,null,null,null,null,"宇多野小学校","462-8136"]
[null,null,null,null,null,null,null,null,null,null,null,null,null,null,null,null,null,null,null,null,null,null,null,null,null,null,null,null,null,null,null,null,null,null,null,null,null,"花園小学校","841-6900"]
[null,null,null,null,null,null,null,null,null,null,null,null,null,null,null,null,null,null,null,null,null,null,null,null,null,null,null,null,null,null,null,null,null,null,null,null,null,"高雄小学校","861-1028"]
[null,null,null,null,null,null,null,null,null,null,null,null,null,null,null,null,null,null,null,null,null,null,null,null,null,null,null,null,null,null,null,null,null,null,null,null,null,"太秦小学校","861-1594"]
[null,null,null,null,null,null,null,null,null,null,null,null,null,null,null,null,null,null,null,null,null,null,null,null,null,null,null,null,null,null,null,null,null,null,null,null,null,"南太秦小学校","881-7781"]
[null,null,null,null,null,null,null,null,null,null,null,null,null,null,null,null,null,null,null,null,null,null,null,null,null,null,null,null,null,null,null,null,null,null,null,null,null,"安井小学校","841-3130"]
[null,null,null,null,null,null,null,null,null,null,null,null,null,null,null,null,null,null,null,null,null,null,null,null,null,null,null,null,null,null,null,null,null,null,null,null,null,"西院小学校","312-3993"]
[null,null,null,null,null,null,null,null,null,null,null,null,null,null,null,null,null,null,null,null,null,null,null,null,null,null,null,null,null,null,null,null,null,null,null,null,null,"山ノ内小学校","311-3546"]
[null,null,null,null,null,null,null,null,null,null,null,null,null,null,null,null,null,null,null,null,null,null,null,null,null,null,null,null,null,null,null,null,null,null,null,null,null,"梅津小学校","861-0009"]
[null,null,null,null,null,null,null,null,null,null,null,null,null,null,null,null,null,null,null,null,null,null,null,null,null,null,null,null,null,null,null,null,null,null,null,null,null,"梅津北小学校","881-5130"]
[null,null,null,null,null,null,null,null,null,null,null,null,null,null,null,null,null,null,null,null,null,null,null,null,null,null,null,null,null,null,null,null,null,null,null,null,null,"西京極小学校","313-1319"]
[null,null,null,null,null,null,null,null,null,null,null,null,null,null,null,null,null,null,null,null,null,null,null,null,null,null,null,null,null,null,null,null,null,null,null,null,null,"西京極西小学校","315-1844"]
[null,null,null,null,null,null,null,null,null,null,null,null,null,null,null,null,null,null,null,null,null,null,null,null,null,null,null,null,null,null,null,null,null,null,null,null,null,"葛野小学校","311-3510"]
[null,null,null,null,null,null,null,null,null,null,null,null,null,null,null,null,null,null,null,null,null,null,null,null,null,null,null,null,null,null,null,null,null,null,null,null,null,"宕陰小中学校","0771-44-0310"]
[null,null,null,null,null,null,null,null,null,null,null,null,null,null,null,null,null,null,null,null,null,null,null,null,null,null,null,null,null,null,null,null,null,null,null,null,null,"京都京北小中学校","852-1133"]
[null,null,null,null,null,null,null,null,null,null,null,null,null,null,null,null,null,null,null,null,null,null,null,null,null,null,null,null,null,null,null,null,null,null,null,null,null,"鳴滝総合支援学校","461-3221"]
[null,null,null,null,null,null,null,null,null,null,null,null,null,null,null,null,null,null,null,null,null,null,null,null,null,null,null,null,null,null,null,null,null,null,null,null,"西京区","川岡小学校","381-2032"]
[null,null,null,null,null,null,null,null,null,null,null,null,null,null,null,null,null,null,null,null,null,null,null,null,null,null,null,null,null,null,null,null,null,null,null,null,null,"川岡東小学校","392-8820"]
[null,null,null,null,null,null,null,null,null,null,null,null,null,null,null,null,null,null,null,null,null,null,null,null,null,null,null,null,null,null,null,null,null,null,null,null,null,"樫原小学校","391-5683"]
[null,null,null,null,null,null,null,null,null,null,null,null,null,null,null,null,null,null,null,null,null,null,null,null,null,null,null,null,null,null,null,null,null,null,null,null,null,"松尾小学校","391-0221"]
[null,null,null,null,null,null,null,null,null,null,null,null,null,null,null,null,null,null,null,null,null,null,null,null,null,null,null,null,null,null,null,null,null,null,null,null,null,"嵐山東小学校","881-5120"]
[null,null,null,null,null,null,null,null,null,null,null,null,null,null,null,null,null,null,null,null,null,null,null,null,null,null,null,null,null,null,null,null,null,null,null,null,null,"松陽小学校","391-3583"]
[null,null,null,null,null,null,null,null,null,null,null,null,null,null,null,null,null,null,null,null,null,null,null,null,null,null,null,null,null,null,null,null,null,null,null,null,null,"桂小学校","391-1331"]
[null,null,null,null,null,null,null,null,null,null,null,null,null,null,null,null,null,null,null,null,null,null,null,null,null,null,null,null,null,null,null,null,null,null,null,null,null,"桂徳小学校","381-7037"]
[null,null,null,null,null,null,null,null,null,null,null,null,null,null,null,null,null,null,null,null,null,null,null,null,null,null,null,null,null,null,null,null,null,null,null,null,null,"桂川小学校","392-0890"]
[null,null,null,null,null,null,null,null,null,null,null,null,null,null,null,null,null,null,null,null,null,null,null,null,null,null,null,null,null,null,null,null,null,null,null,null,null,"桂東小学校","381-2415"]
[null,null,null,null,null,null,null,null,null,null,null,null,null,null,null,null,null,null,null,null,null,null,null,null,null,null,null,null,null,null,null,null,null,null,null,null,null,"大枝小学校","331-0330"]
[null,null,null,null,null,null,null,null,null,null,null,null,null,null,null,null,null,null,null,null,null,null,null,null,null,null,null,null,null,null,null,null,null,null,null,null,null,"桂坂小学校","333-1101"]
[null,null,null,null,null,null,null,null,null,null,null,null,null,null,null,null,null,null,null,null,null,null,null,null,null,null,null,null,null,null,null,null,null,null,null,null,null,"新林小学校","331-5811"]
[null,null,null,null,null,null,null,null,null,null,null,null,null,null,null,null,null,null,null,null,null,null,null,null,null,null,null,null,null,null,null,null,null,null,null,null,null,"境谷小学校","331-7423"]
[null,null,null,null,null,null,null,null,null,null,null,null,null,null,null,null,null,null,null,null,null,null,null,null,null,null,null,null,null,null,null,null,null,null,null,null,null,"竹の里小学校","332-3745"]
[null,null,null,null,null,null,null,null,null,null,null,null,null,null,null,null,null,null,null,null,null,null,null,null,null,null,null,null,null,null,null,null,null,null,null,null,null,"上里小学校","333-2002"]
[null,null,null,null,null,null,null,null,null,null,null,null,null,null,null,null,null,null,null,null,null,null,null,null,null,null,null,null,null,null,null,null,null,null,null,null,null,"福西小学校","332-0688"]
[null,null,null,null,null,null,null,null,null,null,null,null,null,null,null,null,null,null,null,null,null,null,null,null,null,null,null,null,null,null,null,null,null,null,null,null,null,"大原野小学校","331-0005"]
[null,null,null,null,null,null,null,null,null,null,null,null,null,null,null,null,null,null,null,null,null,null,null,null,null,null,null,null,null,null,null,null,null,null,null,null,null,"西総合支援学校","332-4275"]
[null,null,null,null,null,null,null,null,null,null,null,null,null,null,null,null,null,null,null,null,null,null,null,null,null,null,null,null,null,null,null,null,null,null,null,null,"伏見区","深草小学校","641-0951"]
[null,null,null,null,null,null,null,null,null,null,null,null,null,null,null,null,null,null,null,null,null,null,null,null,null,null,null,null,null,null,null,null,null,null,null,null,null,"稲荷小学校","641-0057"]
[null,null,null,null,null,null,null,null,null,null,null,null,null,null,null,null,null,null,null,null,null,null,null,null,null,null,null,null,null,null,null,null,null,null,null,null,null,"藤ノ森小学校","641-6305"]
[null,null,null,null,null,null,null,null,null,null,null,null,null,null,null,null,null,null,null,null,null,null,null,null,null,null,null,null,null,null,null,null,null,null,null,null,null,"藤城小学校","621-5580"]
[null,null,null,null,null,null,null,null,null,null,null,null,null,null,null,null,null,null,null,null,null,null,null,null,null,null,null,null,null,null,null,null,null,null,null,null,null,"砂川小学校","641-7118"]
[null,null,null,null,null,null,null,null,null,null,null,null,null,null,null,null,null,null,null,null,null,null,null,null,null,null,null,null,null,null,null,null,null,null,null,null,null,"竹田小学校","641-6278"]
[null,null,null,null,null,null,null,null,null,null,null,null,null,null,null,null,null,null,null,null,null,null,null,null,null,null,null,null,null,null,null,null,null,null,null,null,null,"桃山小学校","601-7286"]
[null,null,null,null,null,null,null,null,null,null,null,null,null,null,null,null,null,null,null,null,null,null,null,null,null,null,null,null,null,null,null,null,null,null,null,null,null,"桃山東小学校","621-1411"]
[null,null,null,null,null,null,null,null,null,null,null,null,null,null,null,null,null,null,null,null,null,null,null,null,null,null,null,null,null,null,null,null,null,null,null,null,null,"桃山南小学校","621-6841"]
[null,null,null,null,null,null,null,null,null,null,null,null,null,null,null,null,null,null,null,null,null,null,null,null,null,null,null,null,null,null,null,null,null,null,null,null,null,"醍醐小学校","571-0001"]
[null,null,null,null,null,null,null,null,null,null,null,null,null,null,null,null,null,null,null,null,null,null,null,null,null,null,null,null,null,null,null,null,null,null,null,null,null,"小栗栖小学校","571-7632"]
[null,null,null,null,null,null,null,null,null,null,null,null,null,null,null,null,null,null,null,null,null,null,null,null,null,null,null,null,null,null,null,null,null,null,null,null,null,"小栗栖宮山小学校","572-5216"]
[null,null,null,null,null,null,null,null,null,null,null,null,null,null,null,null,null,null,null,null,null,null,null,null,null,null,null,null,null,null,null,null,null,null,null,null,null,"池田小学校","571-6872"]
[null,null,null,null,null,null,null,null,null,null,null,null,null,null,null,null,null,null,null,null,null,null,null,null,null,null,null,null,null,null,null,null,null,null,null,null,null,"池田東小学校","572-4505"]
[null,null,null,null,null,null,null,null,null,null,null,null,null,null,null,null,null,null,null,null,null,null,null,null,null,null,null,null,null,null,null,null,null,null,null,null,null,"春日野小学校","571-5550"]
[null,null,null,null,null,null,null,null,null,null,null,null,null,null,null,null,null,null,null,null,null,null,null,null,null,null,null,null,null,null,null,null,null,null,null,null,null,"日野小学校","573-1567"]
[null,null,null,null,null,null,null,null,null,null,null,null,null,null,null,null,null,null,null,null,null,null,null,null,null,null,null,null,null,null,null,null,null,null,null,null,null,"石田小学校","572-1411"]
[null,null,null,null,null,null,null,null,null,null,null,null,null,null,null,null,null,null,null,null,null,null,null,null,null,null,null,null,null,null,null,null,null,null,null,null,null,"醍醐西小学校","571-0221"]
[null,null,null,null,null,null,null,null,null,null,null,null,null,null,null,null,null,null,null,null,null,null,null,null,null,null,null,null,null,null,null,null,null,null,null,null,null,"北醍醐小学校","572-5353"]
[null,null,null,null,null,null,null,null,null,null,null,null,null,null,null,null,null,null,null,null,null,null,null,null,null,null,null,null,null,null,null,null,null,null,null,null,null,"伏見板橋小学校","611-5158"]
[null,null,null,null,null,null,null,null,null,null,null,null,null,null,null,null,null,null,null,null,null,null,null,null,null,null,null,null,null,null,null,null,null,null,null,null,null,"伏見南浜小学校","611-0091"]
[null,null,null,null,null,null,null,null,null,null,null,null,null,null,null,null,null,null,null,null,null,null,null,null,null,null,null,null,null,null,null,null,null,null,null,null,null,"伏見住吉小学校","611-5243"]
[null,null,null,null,null,null,null,null,null,null,null,null,null,null,null,null,null,null,null,null,null,null,null,null,null,null,null,null,null,null,null,null,null,null,null,null,null,"下鳥羽小学校","611-0357"]
[null,null,null,null,null,null,null,null,null,null,null,null,null,null,null,null,null,null,null,null,null,null,null,null,null,null,null,null,null,null,null,null,null,null,null,null,null,"横大路小学校","601-0356"]
[null,null,null,null,null,null,null,null,null,null,null,null,null,null,null,null,null,null,null,null,null,null,null,null,null,null,null,null,null,null,null,null,null,null,null,null,null,"納所小学校","631-2032"]
[null,null,null,null,null,null,null,null,null,null,null,null,null,null,null,null,null,null,null,null,null,null,null,null,null,null,null,null,null,null,null,null,null,null,null,null,null,"向島小学校","601-8221"]
[null,null,null,null,null,null,null,null,null,null,null,null,null,null,null,null,null,null,null,null,null,null,null,null,null,null,null,null,null,null,null,null,null,null,null,null,null,"向島藤の木小学校","623-0046"]
[null,null,null,null,null,null,null,null,null,null,null,null,null,null,null,null,null,null,null,null,null,null,null,null,null,null,null,null,null,null,null,null,null,null,null,null,null,"神川小学校","921-0154"]
[null,null,null,null,null,null,null,null,null,null,null,null,null,null,null,null,null,null,null,null,null,null,null,null,null,null,null,null,null,null,null,null,null,null,null,null,null,"久我の杜小学校","935-0157"]
[null,null,null,null,null,null,null,null,null,null,null,null,null,null,null,null,null,null,null,null,null,null,null,null,null,null,null,null,null,null,null,null,null,null,null,null,null,"羽束師小学校","934-1501"]
[null,null,null,null,null,null,null,null,null,null,null,null,null,null,null,null,null,null,null,null,null,null,null,null,null,null,null,null,null,null,null,null,null,null,null,null,null,"明親小学校","631-2077"]
[null,null,null,null,null,null,null,null,null,null,null,null,null,null,null,null,null,null,null,null,null,null,null,null,null,null,null,null,null,null,null,null,null,null,null,null,null,"美豆小学校","631-7161"]
[null,null,null,null,null,null,null,null,null,null,null,null,null,null,null,null,null,null,null,null,null,null,null,null,null,null,null,null,null,null,null,null,null,null,null,null,null,"向島秀蓮小中学校","611-3346"]
[null,null,null,null,null,null,null,null,null,null,null,null,null,null,null,null,null,null,null,null,null,null,null,null,null,null,null,null,null,null,null,null,null,null,null,null,null,"呉竹総合支援学校","601-9104"]
[null,null,null,null,null,null,null,null,null,null,null,null,null,null,null,null,null,null,null,null,null,null,null,null,null,null,null,null,null,null,null,null,null,null,null,null,null,"桃陽総合支援学校","641-2634"]

{"sheet":"参加1","index":1,"n_rows":33,"n_cols":27,"rows_kept":33,"cut":false,"hidden":true,"merged":[[32,1,32,23],[1,3,1,8],[27,1,27,5],[28,1,28,5],[25,1,25,5],[26,1,26,5],[28,6,28,11],[31,1,31,23],[5,1,5,23],[16,18,16,21],[16,2,16,7],[16,13,16,17],[17,19,17,20],[22,19,22,20],[21,19,21,20],[21,13,21,17],[0,16,0,18],[7,1,7,23],[10,3,12,10],[19,2,19,7],[19,9,19,10],[19,11,19,12],[19,13,19,17],[0,19,0,23],[10,13,12,15],[20,11,20,12],[17,9,17,10],[18,19,18,20],[19,19,19,20],[20,19,20,20],[26,6,26,11],[27,6,27,11],[22,2,22,7],[22,9,22,10],[22,11,22,12],[25,6,25,11],[22,13,22,17],[16,9,16,10],[16,11,16,12],[20,2,20,7],[20,9,20,10],[20,13,20,17],[21,2,21,7],[21,9,21,10],[17,11,17,12],[17,13,17,17],[18,2,18,7],[18,9,18,10],[18,11,18,12],[18,13,18,17],[17,2,17,7],[21,11,21,12]]}
[null,null,null,null,null,null,null,null,null,null,null,null,null,null,null,null,null,null,null,{"$f":"'集計（返し）'!K1","v":"2024-08-21"},null,null,null,null,null,null,{"$f":"AA2&\"OC1決定通知書(東山総合)\"&D11","v":"OC1決定通知書(東山総合)0"}]
[null,"（あて先）",null,{"$f":"申込シート!N8&\" 学校長様\"","v":" 学校長様"},null,null,null,null,null,null,null,null,null,null,null,null,null,null,null,null,null,null,null,null,null,null,{"$f":"LEFT(D2,FIND(\" \",D2)-1)","v":""}]
[null,null,null,null,null,null,null,null,null,null,null,null,null,null,null,null,null,null,null,null,null,null,null,"京都市立東山総合支援学校"]
[null,null,null,null,null,null,null,null,null,null,null,null,null,null,null,null,null,null,null,null,null,null,null,"OC担当 副教頭 前川 智子"]
[]
[null,"令和６年度  東山総合支援学校\n　　　　学校見学会（中１・小６対象オープンキャンパス）決定通知書"]
[]
[null,"　京都市立東山総合支援学校における学校見学会(中１・小６対象）への参加について、以下のように決定いたしましたのでお知らせいたします。参加日、参加者及び内容をご確認いただきますようお願いいたします。"]
[]
[null,"１　希望日"]
[null,null,null,{"$f":"申込シート!D15","v":"00:00:00"},null,null,null,null,null,null,null,null,null,"第１部"]
[]
[]
[]
[null,"２　参加者"]
[null,"①　小学６年生児童の保護者、家族"]
[null,"学年","児童氏名",null,null,null,null,null,"性別","在籍学級",null,"参加回数",null,"保護者名",null,null,null,null,"児童との関係"]
[null,{"$f":"IF(AND('集計（返し）'!$K4<>\"\",'集計（返し）'!$M4=1),'集計（返し）'!C4,\"\")","v":""},{"$f":"IF(AND('集計（返し）'!$K4<>\"\",'集計（返し）'!$M4=1),'集計（返し）'!D4,\"\")","v":""},null,null,null,null,null,{"$f":"IF(AND('集計（返し）'!$K4<>\"\",'集計（返し）'!$M4=1),'集計（返し）'!E4,\"\")","v":""},{"$f":"IF(AND('集計（返し）'!$K4<>\"\",'集計（返し）'!$M4=1),'集計（返し）'!F4,\"\")","v":""},null,{"$f":"IF(AND('集計（返し）'!$K4<>\"\",'集計（返し）'!$M4=1),'集計（返し）'!G4,\"\")","v":""},null,{"$f":"IF(AND('集計（返し）'!$K4<>\"\",'集計（返し）'!$M4=1),'集計（返し）'!H4,\"\")","v":""},null,null,null,null,"（",{"$f":"IF(AND('集計（返し）'!$K4<>\"\",'集計（返し）'!$M4=1),'集計（返し）'!I4,\"\")","v":""},null,"）",null,{"$f":"IF(OR(Z18=\"\",Z18=0),1,\"\")","v":""},null,"言いいい"]
[null,{"$f":"IF(AND('集計（返し）'!$K5<>\"\",'集計（返し）'!$M5=1),'集計（返し）'!C5,\"\")","v":""},{"$f":"IF(AND('集計（返し）'!$K5<>\"\",'集計（返し）'!$M5=1),'集計（返し）'!D5,\"\")","v":""},null,null,null,null,null,{"$f":"IF(AND('集計（返し）'!$K5<>\"\",'集計（返し）'!$M5=1),'集計（返し）'!E5,\"\")","v":""},{"$f":"IF(AND('集計（返し）'!$K5<>\"\",'集計（返し）'!$M5=1),'集計（返し）'!F5,\"\")","v":""},null,{"$f":"IF(AND('集計（返し）'!$K5<>\"\",'集計（返し）'!$M5=1),'集計（返し）'!G5,\"\")","v":""},null,{"$f":"IF(AND('集計（返し）'!$K5<>\"\",'集計（返し）'!$M5=1),'集計（返し）'!H5,\"\")","v":""},null,null,null,null,"（",{"$f":"IF(AND('集計（返し）'!$K5<>\"\",'集計（返し）'!$M5=1),'集計（返し）'!I5,\"\")","v":""},null,"）",null,{"$f":"IF(OR(Z19=\"\",Z19=0),1,\"\")","v":1},null,""]
[null,{"$f":"IF(AND('集計（返し）'!$K6<>\"\",'集計（返し）'!$M6=1),'集計（返し）'!C6,\"\")","v":""},{"$f":"IF(AND('集計（返し）'!$K6<>\"\",'集計（返し）'!$M6=1),'集計（返し）'!D6,\"\")","v":""},null,null,null,null,null,{"$f":"IF(AND('集計（返し）'!$K6<>\"\",'集計（返し）'!$M6=1),'集計（返し）'!E6,\"\")","v":""},{"$f":"IF(AND('集計（返し）'!$K6<>\"\",'集計（返し）'!$M6=1),'集計（返し）'!F6,\"\")","v":""},null,{"$f":"IF(AND('集計（返し）'!$K6<>\"\",'集計（返し）'!$M6=1),'集計（返し）'!G6,\"\")","v":""},null,{"$f":"IF(AND('集計（返し）'!$K6<>\"\",'集計（返し）'!$M6=1),'集計（返し）'!H6,\"\")","v":""},null,null,null,null,"（",{"$f":"IF(AND('集計（返し）'!$K6<>\"\",'集計（返し）'!$M6=1),'集計（返し）'!I6,\"\")","v":""},null,"）",null,1,null,""]
[null,{"$f":"IF(AND('集計（返し）'!$K7<>\"\",'集計（返し）'!$M7=1),'集計（返し）'!C7,\"\")","v":""},{"$f":"IF(AND('集計（返し）'!$K7<>\"\",'集計（返し）'!$M7=1),'集計（返し）'!D7,\"\")","v":""},null,null,null,null,null,{"$f":"IF(AND('集計（返し）'!$K7<>\"\",'集計（返し）'!$M7=1),'集計（返し）'!E7,\"\")","v":""},{"$f":"IF(AND('集計（返し）'!$K7<>\"\",'集計（返し）'!$M7=1),'集計（返し）'!F7,\"\")","v":""},null,{"$f":"IF(AND('集計（返し）'!$K7<>\"\",'集計（返し）'!$M7=1),'集計（返し）'!G7,\"\")","v":""},null,{"$f":"IF(AND('集計（返し）'!$K7<>\"\",'集計（返し）'!$M7=1),'集計（返し）'!H7,\"\")","v":""},null,null,null,null,"（",{"$f":"IF(AND('集計（返し）'!$K7<>\"\",'集計（返し）'!$M7=1),'集計（返し）'!I7,\"\")","v":""},null,"）",null,1,null,""]
[null,{"$f":"IF(AND('集計（返し）'!$K8<>\"\",'集計（返し）'!$M8=1),'集計（返し）'!C8,\"\")","v":""},{"$f":"IF(AND('集計（返し）'!$K8<>\"\",'集計（返し）'!$M8=1),'集計（返し）'!D8,\"\")","v":""},null,null,null,null,null,{"$f":"IF(AND('集計（返し）'!$K8<>\"\",'集計（返し）'!$M8=1),'集計（返し）'!E8,\"\")","v":""},{"$f":"IF(AND('集計（返し）'!$K8<>\"\",'集計（返し）'!$M8=1),'集計（返し）'!F8,\"\")","v":""},null,{"$f":"IF(AND('集計（返し）'!$K8<>\"\",'集計（返し）'!$M8=1),'集計（返し）'!G8,\"\")","v":""},null,{"$f":"IF(AND('集計（返し）'!$K8<>\"\",'集計（返し）'!$M8=1),'集計（返し）'!H8,\"\")","v":""},null,null,null,null,"（",{"$f":"IF(AND('集計（返し）'!$K8<>\"\",'集計（返し）'!$M8=1),'集計（返し）'!I8,\"\")","v":""},null,"）",null,1,null,""]
[null,{"$f":"IF(AND('集計（返し）'!$K9<>\"\",'集計（返し）'!$M9=1),'集計（返し）'!C9,\"\")","v":""},{"$f":"IF(AND('集計（返し）'!$K9<>\"\",'集計（返し）'!$M9=1),'集計（返し）'!D9,\"\")","v":""},null,null,null,null,null,{"$f":"IF(AND('集計（返し）'!$K9<>\"\",'集計（返し）'!$M9=1),'集計（返し）'!E9,\"\")","v":""},{"$f":"IF(AND('集計（返し）'!$K9<>\"\",'集計（返し）'!$M9=1),'集計（返し）'!F9,\"\")","v":""},null,{"$f":"IF(AND('集計（返し）'!$K9<>\"\",'集計（返し）'!$M9=1),'集計（返し）'!G9,\"\")","v":""},null,{"$f":"IF(AND('集計（返し）'!$K9<>\"\",'集計（返し）'!$M9=1),'集計（返し）'!H9,\"\")","v":""},null,null,null,null,"（",{"$f":"IF(AND('集計（返し）'!$K9<>\"\",'集計（返し）'!$M9=1),'集計（返し）'!I9,\"\")","v":""},null,"）",null,1,null,""]
[]
[null,"②　小学校、特別支援学校（小学部）の教職員"]
[null,"教職員氏名",null,null,null,null,"児童との関係／校務分掌",null,null,null,null,null,null,null,null,"参加人数",null,null,null,null,null,null,null,{"$f":"COUNTBLANK(B27:B29)","v":3}]
[null,{"$f":"IF(AND('集計（返し）'!$K13<>\"\",'集計（返し）'!$M13=1),'集計（返し）'!H13,\"\")","v":""},null,null,null,null,{"$f":"IF(AND('集計（返し）'!$K13<>\"\",'集計（返し）'!$M13=1),'集計（返し）'!I13,\"\")","v":""},null,null,null,null,null,null,null,null,"保護者",null,{"$f":"6-SUM(X18:X23)","v":1},"名"]
[null,{"$f":"IF(AND('集計（返し）'!$K14<>\"\",'集計（返し）'!$M14=1),'集計（返し）'!H14,\"\")","v":""},null,null,null,null,{"$f":"IF(AND('集計（返し）'!$K14<>\"\",'集計（返し）'!$M14=1),'集計（返し）'!I14,\"\")","v":""},null,null,null,null,null,null,null,null,"教職員",null,{"$f":"3-X26","v":0},"名"]
[null,{"$f":"IF(AND('集計（返し）'!$K15<>\"\",'集計（返し）'!$M15=1),'集計（返し）'!H15,\"\")","v":""},null,null,null,null,{"$f":"IF(AND('集計（返し）'!$K15<>\"\",'集計（返し）'!$M15=1),'集計（返し）'!I15,\"\")","v":""},null,null,null,null,null,null,null,null,"合　計",null,{"$f":"SUM(R27:R28)","v":1},"名"]
[]
[null,"③　日　程"]
[null,"　　　９：００～　９：１５　受付\n　　　９：１５～　９：３０　学校紹介　　　　　　 　\n　　　９：３５～１０：３０　見学 （各１５分、移動５分）\n　　１０：３５～１０：４０  質疑応答 （中学生のみ）\n　　１０：４０　　　　　　　終了　　"]
[null,"　※　本校は、２足制になっています。必ず上靴、ならびに下靴を入れる袋をご持参ください。\n　※　遅刻・不参加の場合は、中学校・中学部から東山総合（０７５-５６１-３３７３）へ連絡してください。\n　※　体調不良の場合は、参加の自粛をお願いします。\n　※　発熱等の症状が見られた場合、参加を見合わせていただくことがあります。"]

{"sheet":"参加2","index":2,"n_rows":33,"n_cols":27,"rows_kept":33,"cut":false,"hidden":true,"merged":[[16,18,16,21],[0,16,0,18],[0,19,0,23],[1,3,1,8],[5,1,5,23],[7,1,7,23],[10,3,12,10],[16,2,16,7],[16,9,16,10],[16,11,16,12],[16,13,16,17],[10,13,12,15],[18,2,18,7],[18,9,18,10],[18,11,18,12],[18,13,18,17],[18,19,18,20],[17,2,17,7],[17,9,17,10],[17,11,17,12],[17,13,17,17],[17,19,17,20],[20,2,20,7],[20,9,20,10],[20,11,20,12],[20,13,20,17],[20,19,20,20],[19,2,19,7],[19,9,19,10],[19,11,19,12],[19,13,19,17],[19,19,19,20],[22,2,22,7],[22,9,22,10],[22,11,22,12],[22,13,22,17],[22,19,22,20],[21,2,21,7],[21,9,21,10],[21,11,21,12],[21,13,21,17],[21,19,21,20],[28,1,28,5],[28,6,28,11],[31,1,31,23],[32,1,32,23],[25,1,25,5],[25,6,25,11],[26,1,26,5],[26,6,26,11],[27,1,27,5],[27,6,27,11]]}
[null,null,null,null,null,null,null,null,null,null,null,null,null,null,null,null,null,null,null,{"$f":"'集計（返し）'!K1","v":"2024-08-21"},null,null,null,null,null,null,{"$f":"AA2&\"OC1決定通知書(東山総合)\"&D11","v":"OC1決定通知書(東山総合)0"}]
[null,"（あて先）",null,{"$f":"申込シート!N8&\" 学校長様\"","v":" 学校長様"},null,null,null,null,null,null,null,null,null,null,null,null,null,null,null,null,null,null,null,null,null,null,{"$f":"LEFT(D2,FIND(\" \",D2)-1)","v":""}]
[null,null,null,null,null,null,null,null,null,null,null,null,null,null,null,null,null,null,null,null,null,null,null,"京都市立東山総合支援学校"]
[null,null,null,null,null,null,null,null,null,null,null,null,null,null,null,null,null,null,null,null,null,null,null,"OC担当 副教頭 前川 智子"]
[]
[null,"令和６年度  東山総合支援学校\n　　　　学校見学会（中１・小６対象オープンキャンパス）決定通知書"]
[]
[null,"　京都市立東山総合支援学校における学校見学会(中１・小６対象）への参加について、以下のように決定いたしましたのでお知らせいたします。参加日、参加者及び内容をご確認いただきますようお願いいたします。"]
[]
[null,"１　希望日"]
[null,null,null,{"$f":"申込シート!D15","v":"00:00:00"},null,null,null,null,null,null,null,null,null,"第２部"]
[]
[]
[]
[null,"２　参加者"]
[null,"①　小学６年生児童の保護者、家族"]
[null,"学年","児童氏名",null,null,null,null,null,"性別","在籍学級",null,"参加回数",null,"保護者名",null,null,null,null,"児童との関係"]
[null,{"$f":"IF(AND('集計（返し）'!$K4<>\"\",'集計（返し）'!$M4=2),'集計（返し）'!C4,\"\")","v":""},{"$f":"IF(AND('集計（返し）'!$K4<>\"\",'集計（返し）'!$M4=2),'集計（返し）'!D4,\"\")","v":""},null,null,null,null,null,{"$f":"IF(AND('集計（返し）'!$K4<>\"\",'集計（返し）'!$M4=2),'集計（返し）'!E4,\"\")","v":""},{"$f":"IF(AND('集計（返し）'!$K4<>\"\",'集計（返し）'!$M4=2),'集計（返し）'!F4,\"\")","v":""},null,{"$f":"IF(AND('集計（返し）'!$K4<>\"\",'集計（返し）'!$M4=2),'集計（返し）'!G4,\"\")","v":""},null,{"$f":"IF(AND('集計（返し）'!$K4<>\"\",'集計（返し）'!$M4=2),'集計（返し）'!H4,\"\")","v":""},null,null,null,null,"（",{"$f":"IF(AND('集計（返し）'!$K4<>\"\",'集計（返し）'!$M4=2),'集計（返し）'!I4,\"\")","v":""},null,"）",null,{"$f":"IF(OR(Z18=\"\",Z18=0),1,\"\")","v":1},null,""]
[null,{"$f":"IF(AND('集計（返し）'!$K5<>\"\",'集計（返し）'!$M5=2),'集計（返し）'!C5,\"\")","v":""},{"$f":"IF(AND('集計（返し）'!$K5<>\"\",'集計（返し）'!$M5=2),'集計（返し）'!D5,\"\")","v":""},null,null,null,null,null,{"$f":"IF(AND('集計（返し）'!$K5<>\"\",'集計（返し）'!$M5=2),'集計（返し）'!E5,\"\")","v":""},{"$f":"IF(AND('集計（返し）'!$K5<>\"\",'集計（返し）'!$M5=2),'集計（返し）'!F5,\"\")","v":""},null,{"$f":"IF(AND('集計（返し）'!$K5<>\"\",'集計（返し）'!$M5=2),'集計（返し）'!G5,\"\")","v":""},null,{"$f":"IF(AND('集計（返し）'!$K5<>\"\",'集計（返し）'!$M5=2),'集計（返し）'!H5,\"\")","v":""},null,null,null,null,"（",{"$f":"IF(AND('集計（返し）'!$K5<>\"\",'集計（返し）'!$M5=2),'集計（返し）'!I5,\"\")","v":""},null,"）",null,{"$f":"IF(OR(Z19=\"\",Z19=0),1,\"\")","v":1},null,""]
[null,{"$f":"IF(AND('集計（返し）'!$K6<>\"\",'集計（返し）'!$M6=2),'集計（返し）'!C6,\"\")","v":""},{"$f":"IF(AND('集計（返し）'!$K6<>\"\",'集計（返し）'!$M6=2),'集計（返し）'!D6,\"\")","v":""},null,null,null,null,null,{"$f":"IF(AND('集計（返し）'!$K6<>\"\",'集計（返し）'!$M6=2),'集計（返し）'!E6,\"\")","v":""},{"$f":"IF(AND('集計（返し）'!$K6<>\"\",'集計（返し）'!$M6=2),'集計（返し）'!F6,\"\")","v":""},null,{"$f":"IF(AND('集計（返し）'!$K6<>\"\",'集計（返し）'!$M6=2),'集計（返し）'!G6,\"\")","v":""},null,{"$f":"IF(AND('集計（返し）'!$K6<>\"\",'集計（返し）'!$M6=2),'集計（返し）'!H6,\"\")","v":""},null,null,null,null,"（",{"$f":"IF(AND('集計（返し）'!$K6<>\"\",'集計（返し）'!$M6=2),'集計（返し）'!I6,\"\")","v":""},null,"）",null,1,null,""]
[null,{"$f":"IF(AND('集計（返し）'!$K7<>\"\",'集計（返し）'!$M7=2),'集計（返し）'!C7,\"\")","v":""},{"$f":"IF(AND('集計（返し）'!$K7<>\"\",'集計（返し）'!$M7=2),'集計（返し）'!D7,\"\")","v":""},null,null,null,null,null,{"$f":"IF(AND('集計（返し）'!$K7<>\"\",'集計（返し）'!$M7=2),'集計（返し）'!E7,\"\")","v":""},{"$f":"IF(AND('集計（返し）'!$K7<>\"\",'集計（返し）'!$M7=2),'集計（返し）'!F7,\"\")","v":""},null,{"$f":"IF(AND('集計（返し）'!$K7<>\"\",'集計（返し）'!$M7=2),'集計（返し）'!G7,\"\")","v":""},null,{"$f":"IF(AND('集計（返し）'!$K7<>\"\",'集計（返し）'!$M7=2),'集計（返し）'!H7,\"\")","v":""},null,null,null,null,"（",{"$f":"IF(AND('集計（返し）'!$K7<>\"\",'集計（返し）'!$M7=2),'集計（返し）'!I7,\"\")","v":""},null,"）",null,1,null,""]
[null,{"$f":"IF(AND('集計（返し）'!$K8<>\"\",'集計（返し）'!$M8=2),'集計（返し）'!C8,\"\")","v":""},{"$f":"IF(AND('集計（返し）'!$K8<>\"\",'集計（返し）'!$M8=2),'集計（返し）'!D8,\"\")","v":""},null,null,null,null,null,{"$f":"IF(AND('集計（返し）'!$K8<>\"\",'集計（返し）'!$M8=2),'集計（返し）'!E8,\"\")","v":""},{"$f":"IF(AND('集計（返し）'!$K8<>\"\",'集計（返し）'!$M8=2),'集計（返し）'!F8,\"\")","v":""},null,{"$f":"IF(AND('集計（返し）'!$K8<>\"\",'集計（返し）'!$M8=2),'集計（返し）'!G8,\"\")","v":""},null,{"$f":"IF(AND('集計（返し）'!$K8<>\"\",'集計（返し）'!$M8=2),'集計（返し）'!H8,\"\")","v":""},null,null,null,null,"（",{"$f":"IF(AND('集計（返し）'!$K8<>\"\",'集計（返し）'!$M8=2),'集計（返し）'!I8,\"\")","v":""},null,"）",null,1,null,""]
[null,{"$f":"IF(AND('集計（返し）'!$K9<>\"\",'集計（返し）'!$M9=2),'集計（返し）'!C9,\"\")","v":""},{"$f":"IF(AND('集計（返し）'!$K9<>\"\",'集計（返し）'!$M9=2),'集計（返し）'!D9,\"\")","v":""},null,null,null,null,null,{"$f":"IF(AND('集計（返し）'!$K9<>\"\",'集計（返し）'!$M9=2),'集計（返し）'!E9,\"\")","v":""},{"$f":"IF(AND('集計（返し）'!$K9<>\"\",'集計（返し）'!$M9=2),'集計（返し）'!F9,\"\")","v":""},null,{"$f":"IF(AND('集計（返し）'!$K9<>\"\",'集計（返し）'!$M9=2),'集計（返し）'!G9,\"\")","v":""},null,{"$f":"IF(AND('集計（返し）'!$K9<>\"\",'集計（返し）'!$M9=2),'集計（返し）'!H9,\"\")","v":""},null,null,null,null,"（",{"$f":"IF(AND('集計（返し）'!$K9<>\"\",'集計（返し）'!$M9=2),'集計（返し）'!I9,\"\")","v":""},null,"）",null,1,null,""]
[]
[null,"②　小学校、特別支援学校（小学部）の教職員"]
[null,"教職員氏名",null,null,null,null,"児童との関係／校務分掌",null,null,null,null,null,null,null,null,"参加人数",null,null,null,null,null,null,null,{"$f":"COUNTBLANK(B27:B29)","v":3}]
[null,{"$f":"IF(AND('集計（返し）'!$K13<>\"\",'集計（返し）'!$M13=2),'集計（返し）'!H13,\"\")","v":""},null,null,null,null,{"$f":"IF(AND('集計（返し）'!$K13<>\"\",'集計（返し）'!$M13=2),'集計（返し）'!I13,\"\")","v":""},null,null,null,null,null,null,null,null,"保護者",null,{"$f":"6-SUM(X18:X23)","v":0},"名"]
[null,{"$f":"IF(AND('集計（返し）'!$K14<>\"\",'集計（返し）'!$M14=2),'集計（返し）'!H14,\"\")","v":""},null,null,null,null,{"$f":"IF(AND('集計（返し）'!$K14<>\"\",'集計（返し）'!$M14=2),'集計（返し）'!I14,\"\")","v":""},null,null,null,null,null,null,null,null,"教職員",null,{"$f":"3-X26","v":0},"名"]
[null,{"$f":"IF(AND('集計（返し）'!$K15<>\"\",'集計（返し）'!$M15=2),'集計（返し）'!H15,\"\")","v":""},null,null,null,null,{"$f":"IF(AND('集計（返し）'!$K15<>\"\",'集計（返し）'!$M15=2),'集計（返し）'!I15,\"\")","v":""},null,null,null,null,null,null,null,null,"合　計",null,{"$f":"SUM(R27:R28)","v":0},"名"]
[]
[null,"③　日　程"]
[null,"　　１０：４０～１０：５５　受付\n　　１０：５５～１１：１０　学校紹介　　　　　　 　\n　　１１：１５～１２：１０　見学 （各１５分、移動５分）\n　　１２：１５～１２：２０  質疑応答 （生徒のみ）\n　　１２：２０　　　　　　　終了　　"]
[null,"　※　本校は、２足制になっています。必ず上靴、ならびに下靴を入れる袋をご持参ください。\n　※　遅刻・不参加の場合は、中学校・中学部から東山総合（０７５-５６１-３３７３）へ連絡してください。\n　※　体調不良の場合は、参加の自粛をお願いします。\n　※　発熱等の症状が見られた場合、参加を見合わせていただくことがあります。"]

{"sheet":"不参加","index":3,"n_rows":30,"n_cols":27,"rows_kept":30,"cut":false,"hidden":true,"merged":[[29,1,29,5],[29,6,29,11],[21,2,21,7],[21,9,21,10],[21,11,21,12],[26,1,26,5],[26,6,26,11],[27,1,27,5],[27,6,27,11],[28,1,28,5],[28,6,28,11],[19,2,19,7],[19,9,19,10],[19,11,19,12],[19,13,19,17],[21,13,21,17],[20,2,20,7],[20,9,20,10],[20,11,20,12],[20,13,20,17],[18,2,18,7],[18,9,18,10],[18,11,18,12],[18,13,18,17],[18,19,18,20],[0,19,0,23],[22,19,22,20],[17,9,17,10],[17,11,17,12],[17,13,17,17],[17,18,17,21],[21,19,21,20],[19,19,19,20],[20,19,20,20],[23,19,23,20],[22,13,22,17],[23,13,23,17],[0,16,0,18],[22,2,22,7],[22,9,22,10],[22,11,22,12],[23,2,23,7],[23,9,23,10],[23,11,23,12],[8,1,8,23],[5,1,5,23],[1,3,1,8],[7,1,7,23],[11,3,13,10],[17,2,17,7]]}
[null,null,null,null,null,null,null,null,null,null,null,null,null,null,null,null,null,null,null,{"$f":"'集計（返し）'!K1","v":"2024-08-21"},null,null,null,null,null,null,{"$f":"AA2&\"OC1決定通知書(東山総合)\"&D12","v":"OC1決定通知書(東山総合)0"}]
[null,"（あて先）",null,{"$f":"申込シート!N8&\" 学校長様\"","v":" 学校長様"},null,null,null,null,null,null,null,null,null,null,null,null,null,null,null,null,null,null,null,null,null,null,{"$f":"LEFT(D2,FIND(\" \",D2)-1)","v":""}]
[null,null,null,null,null,null,null,null,null,null,null,null,null,null,null,null,null,null,null,null,null,null,null,"京都市立東山総合支援学校"]
[null,null,null,null,null,null,null,null,null,null,null,null,null,null,null,null,null,null,null,null,null,null,null,"OC担当 副教頭 前川 智子"]
[]
[null,"       令和６年度  東山総合支援学校\n　　           学校見学会（中１・小６対象オープンキャンパス）決定通知書"]
[]
[null,"　京都市立東山総合支援学校における学校見学会(中１・小６対象）への参加について，以下のように決定いたしましたのでお知らせいたします。"]
[null,"　申し訳けありませんが，定員と参加回数の少ない人を優先にさせていただきましたので，下記の方々にはご希望に添えることができませんでした。"]
[]
[null,"１　希望日"]
[null,null,null,{"$f":"申込シート!D15","v":"00:00:00"}]
[]
[]
[]
[null,"２　参加希望者"]
[null,"①　小学６年生児童の保護者，家族"]
[null,"学年","児童氏名",null,null,null,null,null,"性別","在籍学級",null,"参加回数",null,"保護者名",null,null,null,null,"児童との関係"]
[null,{"$f":"IF('集計（返し）'!$L4<>\"\",'集計（返し）'!C4,\"\")","v":""},{"$f":"IF('集計（返し）'!$L4<>\"\",'集計（返し）'!D4,\"\")","v":""},null,null,null,null,null,{"$f":"IF('集計（返し）'!$L4<>\"\",'集計（返し）'!E4,\"\")","v":""},{"$f":"IF('集計（返し）'!$L4<>\"\",'集計（返し）'!F4,\"\")","v":""},null,{"$f":"IF('集計（返し）'!$L4<>\"\",'集計（返し）'!G4,\"\")","v":""},null,{"$f":"IF('集計（返し）'!$L4<>\"\",'集計（返し）'!H4,\"\")","v":""},null,null,null,null,"（",{"$f":"IF('集計（返し）'!$L4<>\"\",'集計（返し）'!I4,\"\")","v":""},null,"）"]
[null,{"$f":"IF('集計（返し）'!$L5<>\"\",'集計（返し）'!C5,\"\")","v":""},{"$f":"IF('集計（返し）'!$L5<>\"\",'集計（返し）'!D5,\"\")","v":""},null,null,null,null,null,{"$f":"IF('集計（返し）'!$L5<>\"\",'集計（返し）'!E5,\"\")","v":""},{"$f":"IF('集計（返し）'!$L5<>\"\",'集計（返し）'!F5,\"\")","v":""},null,{"$f":"IF('集計（返し）'!$L5<>\"\",'集計（返し）'!G5,\"\")","v":""},null,{"$f":"IF('集計（返し）'!$L5<>\"\",'集計（返し）'!H5,\"\")","v":""},null,null,null,null,"（",{"$f":"IF('集計（返し）'!$L5<>\"\",'集計（返し）'!I5,\"\")","v":""},null,"）"]
[null,{"$f":"IF('集計（返し）'!$L6<>\"\",'集計（返し）'!C6,\"\")","v":""},{"$f":"IF('集計（返し）'!$L6<>\"\",'集計（返し）'!D6,\"\")","v":""},null,null,null,null,null,{"$f":"IF('集計（返し）'!$L6<>\"\",'集計（返し）'!E6,\"\")","v":""},{"$f":"IF('集計（返し）'!$L6<>\"\",'集計（返し）'!F6,\"\")","v":""},null,{"$f":"IF('集計（返し）'!$L6<>\"\",'集計（返し）'!G6,\"\")","v":""},null,{"$f":"IF('集計（返し）'!$L6<>\"\",'集計（返し）'!H6,\"\")","v":""},null,null,null,null,"（",{"$f":"IF('集計（返し）'!$L6<>\"\",'集計（返し）'!I6,\"\")","v":""},null,"）"]
[null,{"$f":"IF('集計（返し）'!$L7<>\"\",'集計（返し）'!C7,\"\")","v":""},{"$f":"IF('集計（返し）'!$L7<>\"\",'集計（返し）'!D7,\"\")","v":""},null,null,null,null,null,{"$f":"IF('集計（返し）'!$L7<>\"\",'集計（返し）'!E7,\"\")","v":""},{"$f":"IF('集計（返し）'!$L7<>\"\",'集計（返し）'!F7,\"\")","v":""},null,{"$f":"IF('集計（返し）'!$L7<>\"\",'集計（返し）'!G7,\"\")","v":""},null,{"$f":"IF('集計（返し）'!$L7<>\"\",'集計（返し）'!H7,\"\")","v":""},null,null,null,null,"（",{"$f":"IF('集計（返し）'!$L7<>\"\",'集計（返し）'!I7,\"\")","v":""},null,"）"]
[null,{"$f":"IF('集計（返し）'!$L8<>\"\",'集計（返し）'!C8,\"\")","v":""},{"$f":"IF('集計（返し）'!$L8<>\"\",'集計（返し）'!D8,\"\")","v":""},null,null,null,null,null,{"$f":"IF('集計（返し）'!$L8<>\"\",'集計（返し）'!E8,\"\")","v":""},{"$f":"IF('集計（返し）'!$L8<>\"\",'集計（返し）'!F8,\"\")","v":""},null,{"$f":"IF('集計（返し）'!$L8<>\"\",'集計（返し）'!G8,\"\")","v":""},null,{"$f":"IF('集計（返し）'!$L8<>\"\",'集計（返し）'!H8,\"\")","v":""},null,null,null,null,"（",{"$f":"IF('集計（返し）'!$L8<>\"\",'集計（返し）'!I8,\"\")","v":""},null,"）"]
[null,{"$f":"IF('集計（返し）'!$L9<>\"\",'集計（返し）'!C9,\"\")","v":""},{"$f":"IF('集計（返し）'!$L9<>\"\",'集計（返し）'!D9,\"\")","v":""},null,null,null,null,null,{"$f":"IF('集計（返し）'!$L9<>\"\",'集計（返し）'!E9,\"\")","v":""},{"$f":"IF('集計（返し）'!$L9<>\"\",'集計（返し）'!F9,\"\")","v":""},null,{"$f":"IF('集計（返し）'!$L9<>\"\",'集計（返し）'!G9,\"\")","v":""},null,{"$f":"IF('集計（返し）'!$L9<>\"\",'集計（返し）'!H9,\"\")","v":""},null,null,null,null,"（",{"$f":"IF('集計（返し）'!$L9<>\"\",'集計（返し）'!I9,\"\")","v":""},null,"）"]
[]
[null,"②　小学校，総合支援学校（小学部）の教職員"]
[null,"教職員氏名",null,null,null,null,"児童との関係／校務分掌"]
[null,{"$f":"IF('集計（返し）'!$L13<>\"\",'集計（返し）'!H13,\"\")","v":""},null,null,null,null,{"$f":"IF('集計（返し）'!$L13<>\"\",'集計（返し）'!I13,\"\")","v":""}]
[null,{"$f":"IF('集計（返し）'!$L14<>\"\",'集計（返し）'!H14,\"\")","v":""},null,null,null,null,{"$f":"IF('集計（返し）'!$L14<>\"\",'集計（返し）'!I14,\"\")","v":""}]
[null,{"$f":"IF('集計（返し）'!$L15<>\"\",'集計（返し）'!H15,\"\")","v":""},null,null,null,null,{"$f":"IF('集計（返し）'!$L15<>\"\",'集計（返し）'!I15,\"\")","v":""}]

{"sheet":"集計（一覧表）","index":4,"n_rows":10,"n_cols":21,"rows_kept":10,"cut":false,"hidden":true,"merged":[[0,1,0,4],[0,5,0,7]]}
[null,"学校見学会集計表（小６年）",null,null,null,{"$f":"申込シート!D15","v":0},null,null,null,null,null,null,null,null,null,null,null,null,null,null,{"$f":"申込シート!N8","v":0}]
[null,null,null,null,null,null,null,null,null,null,null,null,null,null,null,null,null,null,null,null,{"$f":"LEFT(U1,LEN(U1)-2)","v":{"$error":"#VALUE!"}}]
[null,"学校名","学年","氏名","性別","在籍","参加回数","保護者","関係","部希望","参加","不参加","部","教職員","関係","部希望","参加","不参加","部"]
[null,{"$f":"'集計（返し）'!B4","v":{"$error":"#VALUE!"}},{"$f":"'集計（返し）'!C4","v":"６年"},{"$f":"'集計（返し）'!D4","v":0},{"$f":"'集計（返し）'!E4","v":0},{"$f":"'集計（返し）'!F4","v":0},{"$f":"'集計（返し）'!G4","v":0},{"$f":"'集計（返し）'!H4","v":0},{"$f":"'集計（返し）'!I4","v":0},{"$f":"'集計（返し）'!J4","v":0},{"$f":"'集計（返し）'!K4","v":0},{"$f":"'集計（返し）'!L4","v":0},{"$f":"'集計（返し）'!M4","v":0},{"$f":"'集計（返し）'!H13","v":0},{"$f":"'集計（返し）'!I13","v":0},{"$f":"'集計（返し）'!J13","v":0},{"$f":"'集計（返し）'!K13","v":0},{"$f":"'集計（返し）'!L13","v":0},{"$f":"'集計（返し）'!M13","v":0}]
[null,{"$f":"'集計（返し）'!B5","v":""},{"$f":"'集計（返し）'!C5","v":"６年"},{"$f":"'集計（返し）'!D5","v":0},{"$f":"'集計（返し）'!E5","v":0},{"$f":"'集計（返し）'!F5","v":0},{"$f":"'集計（返し）'!G5","v":0},{"$f":"'集計（返し）'!H5","v":0},{"$f":"'集計（返し）'!I5","v":0},{"$f":"'集計（返し）'!J5","v":0},{"$f":"'集計（返し）'!K5","v":0},{"$f":"'集計（返し）'!L5","v":0},{"$f":"'集計（返し）'!M5","v":0},{"$f":"'集計（返し）'!H14","v":0},{"$f":"'集計（返し）'!I14","v":0},{"$f":"'集計（返し）'!J14","v":0},{"$f":"'集計（返し）'!K14","v":0},{"$f":"'集計（返し）'!L14","v":0},{"$f":"'集計（返し）'!M14","v":0}]
[null,{"$f":"'集計（返し）'!B6","v":""},{"$f":"'集計（返し）'!C6","v":"６年"},{"$f":"'集計（返し）'!D6","v":0},{"$f":"'集計（返し）'!E6","v":0},{"$f":"'集計（返し）'!F6","v":0},{"$f":"'集計（返し）'!G6","v":0},{"$f":"'集計（返し）'!H6","v":0},{"$f":"'集計（返し）'!I6","v":0},{"$f":"'集計（返し）'!J6","v":0},{"$f":"'集計（返し）'!K6","v":0},{"$f":"'集計（返し）'!L6","v":0},{"$f":"'集計（返し）'!M6","v":0},{"$f":"'集計（返し）'!H15","v":0},{"$f":"'集計（返し）'!I15","v":0},{"$f":"'集計（返し）'!J15","v":0},{"$f":"'集計（返し）'!K15","v":0},{"$f":"'集計（返し）'!L15","v":0},{"$f":"'集計（返し）'!M15","v":0}]
[null,{"$f":"'集計（返し）'!B7","v":""},{"$f":"'集計（返し）'!C7","v":"６年"},{"$f":"'集計（返し）'!D7","v":0},{"$f":"'集計（返し）'!E7","v":0},{"$f":"'集計（返し）'!F7","v":0},{"$f":"'集計（返し）'!G7","v":0},{"$f":"'集計（返し）'!H7","v":0},{"$f":"'集計（返し）'!I7","v":0},{"$f":"'集計（返し）'!J7","v":0},{"$f":"'集計（返し）'!K7","v":0},{"$f":"'集計（返し）'!L7","v":0},{"$f":"'集計（返し）'!M7","v":0}]
[null,{"$f":"'集計（返し）'!B8","v":""},{"$f":"'集計（返し）'!C8","v":"６年"},{"$f":"'集計（返し）'!D8","v":0},{"$f":"'集計（返し）'!E8","v":0},{"$f":"'集計（返し）'!F8","v":0},{"$f":"'集計（返し）'!G8","v":0},{"$f":"'集計（返し）'!H8","v":0},{"$f":"'集計（返し）'!I8","v":0},{"$f":"'集計（返し）'!J8","v":0},{"$f":"'集計（返し）'!K8","v":0},{"$f":"'集計（返し）'!L8","v":0},{"$f":"'集計（返し）'!M8","v":0}]
[null,{"$f":"'集計（返し）'!B9","v":""},{"$f":"'集計（返し）'!C9","v":"６年"},{"$f":"'集計（返し）'!D9","v":0},{"$f":"'集計（返し）'!E9","v":0},{"$f":"'集計（返し）'!F9","v":0},{"$f":"'集計（返し）'!G9","v":0},{"$f":"'集計（返し）'!H9","v":0},{"$f":"'集計（返し）'!I9","v":0},{"$f":"'集計（返し）'!J9","v":0},{"$f":"'集計（返し）'!K9","v":0},{"$f":"'集計（返し）'!L9","v":0},{"$f":"'集計（返し）'!M9","v":0}]
[null,null,null,null,null,null,null,null,null,{"$f":"申込シート!S28","v":0},null,null,null,null,{"$f":"IF(COUNTA(L10:M10)=2,\"不参加です\",IF(AND(K10<>\"\",M10=\"\"),\"部未入力です\",\"\"))","v":""}]

{"sheet":"集計（返し）","index":5,"n_rows":15,"n_cols":21,"rows_kept":15,"cut":false,"hidden":true,"merged":[[0,10,0,13],[0,1,0,4],[0,5,0,7]]}
[null,"学校見学会集計表（小６年）",null,null,null,{"$f":"申込シート!D15","v":0},null,null,null,null,{"$f":"TODAY()","v":"2024-08-21"},null,null,null,null,null,null,null,null,null,{"$f":"申込シート!N8","v":0}]
[null,null,null,null,null,null,null,null,null,null,null,null,null,null,null,null,null,null,null,null,{"$f":"LEFT(U1,LEN(U1)-2)","v":{"$error":"#VALUE!"}}]
[null,"学校名","学年","氏名","性別","在籍","参加回数","保護者","関係","部希望","参加","不参加","部"]
[null,{"$f":"U$2","v":{"$error":"#VALUE!"}},{"$f":"申込シート!B$22","v":"６年"},{"$f":"申込シート!C22","v":0},{"$f":"申込シート!F22","v":0},{"$f":"申込シート!G22","v":0},{"$f":"申込シート!H22","v":0},{"$f":"申込シート!J22","v":0},{"$f":"申込シート!P22","v":0},{"$f":"申込シート!S22","v":0},null,null,null,{"$f":"IF(COUNTA(K4:L4)=2,\"どちらかに\",\"\")","v":""},{"$f":"IF(COUNTA(L4:M4)=2,\"不参加です\",IF(AND(K4<>\"\",M4=\"\"),\"部未入力です\",\"\"))","v":""}]
[null,{"$f":"IF(D5=0,\"\",$B$4)","v":""},{"$f":"申込シート!B$22","v":"６年"},{"$f":"申込シート!C23","v":0},{"$f":"申込シート!F23","v":0},{"$f":"申込シート!G23","v":0},{"$f":"申込シート!H23","v":0},{"$f":"申込シート!J23","v":0},{"$f":"申込シート!P23","v":0},{"$f":"申込シート!S23","v":0},null,null,null,{"$f":"IF(COUNTA(K5:L5)=2,\"どちらかに\",\"\")","v":""},{"$f":"IF(COUNTA(L5:M5)=2,\"不参加です\",IF(AND(K5<>\"\",M5=\"\"),\"部未入力です\",\"\"))","v":""}]
[null,{"$f":"IF(D6=0,\"\",$B$4)","v":""},{"$f":"申込シート!B$22","v":"６年"},{"$f":"申込シート!C24","v":0},{"$f":"申込シート!F24","v":0},{"$f":"申込シート!G24","v":0},{"$f":"申込シート!H24","v":0},{"$f":"申込シート!J24","v":0},{"$f":"申込シート!P24","v":0},{"$f":"申込シート!S24","v":0},null,null,null,"",""]
[null,"",{"$f":"申込シート!B$22","v":"６年"},{"$f":"申込シート!C25","v":0},{"$f":"申込シート!F25","v":0},{"$f":"申込シート!G25","v":0},{"$f":"申込シート!H25","v":0},{"$f":"申込シート!J25","v":0},{"$f":"申込シート!P25","v":0},{"$f":"申込シート!S25","v":0},null,null,null,"",""]
[null,"",{"$f":"申込シート!B$22","v":"６年"},{"$f":"申込シート!C26","v":0},{"$f":"申込シート!F26","v":0},{"$f":"申込シート!G26","v":0},{"$f":"申込シート!H26","v":0},{"$f":"申込シート!J26","v":0},{"$f":"申込シート!P26","v":0},{"$f":"申込シート!S26","v":0},null,null,null,"",""]
[null,"",{"$f":"申込シート!B$22","v":"６年"},{"$f":"申込シート!C27","v":0},{"$f":"申込シート!F27","v":0},{"$f":"申込シート!G27","v":0},{"$f":"申込シート!H27","v":0},{"$f":"申込シート!J27","v":0},{"$f":"申込シート!P27","v":0},{"$f":"申込シート!S27","v":0},null,null,null,"",""]
[null,null,null,null,null,null,null,null,null,{"$f":"申込シート!S33","v":0},null,null,null,"",""]
[]
[null,null,null,null,null,null,null,"教職員","関係","部希望","参加","不参加","部"]
[null,null,null,null,null,null,null,{"$f":"申込シート!B31","v":0},{"$f":"申込シート!F31","v":0},{"$f":"申込シート!I31","v":0},null,null,null,{"$f":"IF(COUNTA(K13:L13)=2,\"どちらかに\",\"\")","v":""},{"$f":"IF(COUNTA(L13:M13)=2,\"不参加です\",IF(AND(K13<>\"\",M13=\"\"),\"部未入力です\",\"\"))","v":""}]
[null,null,null,null,null,null,null,{"$f":"申込シート!B32","v":0},{"$f":"申込シート!F32","v":0},{"$f":"申込シート!I32","v":0},null,null,null,{"$f":"IF(COUNTA(K14:L14)=2,\"どちらかに\",\"\")","v":""},""]
[null,null,null,null,null,null,null,{"$f":"申込シート!B33","v":0},{"$f":"申込シート!F33","v":0},{"$f":"申込シート!I33","v":0},null,null,null,"",""]